bitfinex-derivatives/quotes_ETHF0:USTF0_20241008
["timestamp","ask_amount","ask_price","bid_price","bid_amount"]
[1728369858359,1.89099,2433.8,2433.6,0.41101]
[1728369858556,0.411,2433.7,2433.5,4.01622]
[1728369859261,0.411,2433.7,2433.6,0.41101]
[1728369860267,0.411,2433.7,2433.5,4.01622]
[1728369860456,1.891,2433.7,2433.6,0.41101]
[1728369861161,1.891,2433.7,2433.5,3.6052]
[1728369861365,1.891,2433.7,2433.5,4.01621]
[1728369861660,1.891,2433.7,2433.6,0.41101]
[1728369861860,1.891,2433.7,2433.5,3.6052]
[1728369861861,1.48,2433.7,2433.5,3.6052]
[1728369862065,0.41101,2433.6,2433.5,4.01622]
[1728369864658,1.48,2433.7,2433.5,4.01622]
[1728369864860,0.41101,2433.6,2433.5,4.01622]
[1728369865360,0.41101,2433.6,2433.4,0.41103]
[1728369865659,0.41101,2433.6,2433.5,0.41103]
[1728369865860,0.41101,2433.6,2433.3,0.4112]
[1728369866061,1.8923,2433.7,2433.3,0.4112]
[1728369866255,1.8923,2433.7,2433.4,0.41103]
[1728369866256,0.41103,2433.5,2433.4,0.41103]
[1728369867065,0.41102,2433.6,2433.5,0.41102]
[1728369867455,0.41102,2433.6,2433.3,0.4112]
[1728369867456,0.41106,2433.3,2433.2,0.4048]
[1728369867659,1.48,2433.4,2433.2,0.4048]
[1728369867856,1.89106,2433.4,2433.3,0.41106]
[1728369868559,0.41106,2433.3,2433.2,0.81587]
[1728369870762,1.48,2433.4,2433.0,3.2078]
[1728369871068,1.48,2433.1,2432.8,1.2172]
[1728369871265,1.48,2433.1,2433.0,0.41111]
[1728369871266,0.4111,2433.1,2433.0,0.41111]
[1728369872168,1.89109,2433.2,2433.1,0.4111]
[1728369875268,0.4111,2433.1,2433.0,0.4111]
[1728369875473,1.89109,2433.2,2433.0,0.4111]
[1728369876076,1.89109,2433.2,2432.9,3.2078]
[1728369876368,1.89109,2433.2,2433.1,0.4111]
[1728369879271,1.48,2433.2,2433.1,0.4111]
[1728369879771,0.7986,2433.5,2432.9,3.2078]
[1728369879965,0.41105,2433.4,2433.3,0.41105]
[1728369882871,0.41105,2433.4,2432.9,5.71561]
[1728369882872,2.6944,2433.5,2432.9,4.6878]
[1728369883172,1.8719,2433.5,2433.4,0.41105]
[1728369885170,0.3919,2433.5,2433.4,0.41105]
[1728369885374,0.41102,2433.6,2433.5,0.41102]
[1728369887478,1.48,2433.7,2433.6,0.41101]
[1728369890076,1.48,2433.9,2433.6,4.1088]
[1728369890376,1.89097,2433.9,2433.8,0.41098]
[1728369890571,1.48,2433.9,2433.8,0.41098]
[1728369890777,1.48,2433.9,2433.8,0.82618]
[1728369891374,1.89096,2433.9,2433.8,0.4152]
[1728369891580,1.48,2433.9,2433.5,3.2078]
[1728369891785,1.48,2433.7,2433.6,0.411]
[1728369892080,1.89099,2433.7,2433.6,0.411]
[1728369892472,1.48,2433.7,2433.6,0.411]
[1728369893178,1.8975,2433.7,2433.6,0.411]
[1728369900779,1.8975,2433.7,2433.1,4.197]
[1728369900984,0.3919,2433.6,2433.5,0.41102]
[1728369902785,1.8719,2433.6,2433.5,0.41102]
[1728369905787,1.48,2433.8,2433.3,0.3857]
[1728369905990,1.48,2433.8,2433.7,0.41099]
[1728369908588,2.2917,2434.0,2433.9,0.41096]
[1728369909990,2.2917,2434.0,2433.9,3.61876]
[1728369910186,2.2917,2434.0,2433.9,0.41096]
[1728369910691,2.2917,2434.0,2433.9,3.61876]
[1728369911088,2.2917,2434.0,2433.9,0.41096]
[1728369911589,2.2917,2434.0,2433.9,3.61876]
[1728369913005,2.2917,2434.0,2433.9,0.41096]
[1728369913599,2.2917,2434.0,2433.9,3.61876]
[1728369914005,1.9014,2434.0,2433.9,3.61876]
[1728369915307,1.48,2434.1,2433.9,3.2078]
[1728369915511,1.8982,2434.1,2434.0,0.41094]
[1728369917813,0.4182,2434.1,2434.0,0.41094]
[1728369918112,1.48,2434.2,2434.1,0.41093]
[1728369918510,2.31711,2434.2,2434.1,0.41093]
[1728369918909,2.31711,2434.2,2433.6,3.2078]
[1728369918910,1.9062,2434.2,2433.6,3.2078]
[1728369919114,0.41098,2433.9,2433.8,0.41098]
[1728369919311,1.89098,2433.9,2433.8,0.41098]
[1728369919616,1.48,2433.9,2433.8,0.41098]
[1728369920111,1.8761,2433.9,2433.8,0.41098]
[1728369920507,2.28706,2433.9,2433.8,0.41098]
[1728369920710,1.8761,2433.9,2433.8,0.41098]
[1728369920906,2.28706,2433.9,2433.8,0.41098]
[1728369921104,1.8761,2433.9,2433.8,0.41098]
[1728369921514,2.28706,2433.9,2433.8,0.41098]
[1728369921814,1.8761,2433.9,2433.8,0.41098]
[1728369922207,2.28706,2433.9,2433.8,0.41098]
[1728369922607,1.8761,2433.9,2433.4,1.2301]
[1728369922804,0.81658,2433.8,2433.7,0.41098]
[1728369923013,2.29658,2433.8,2433.7,0.41098]
[1728369923412,1.8856,2433.8,2433.7,0.41098]
[1728369925113,1.8856,2433.8,2433.3,13.04363643]
[1728369925320,2.29659,2433.8,2433.7,0.41099]
[1728369925513,0.41101,2433.7,2433.6,0.411]
[1728369925720,1.89101,2433.7,2433.6,0.411]
[1728369926215,1.89101,2433.7,2433.6,0.41101]
[1728369926916,1.89101,2433.7,2433.5,0.41101]
[1728369926917,0.41102,2433.6,2433.5,0.41101]
[1728369927117,2.30002,2433.6,2433.5,0.41101]
[1728369928412,1.889,2433.6,2433.5,0.41101]
[1728369929220,2.30001,2433.6,2433.5,0.41101]
[1728369929609,1.889,2433.6,2433.5,0.41101]
[1728369930813,2.30001,2433.6,2433.5,0.41101]
[1728369931216,1.889,2433.6,2433.5,0.41101]
[1728369931613,2.30001,2433.6,2433.5,0.41101]
[1728369932119,1.889,2433.6,2433.5,0.41101]
[1728369932715,2.30001,2433.6,2433.5,0.41101]
[1728369933420,1.889,2433.6,2433.5,0.41101]
[1728369943431,2.30001,2433.6,2433.5,0.41101]
[1728369943625,1.889,2433.6,2433.5,0.41101]
[1728369944030,2.30001,2433.6,2433.5,0.41101]
[1728369944533,0.41103,2433.5,2433.4,0.41103]
[1728369944726,1.8742,2433.5,2433.4,0.41103]
[1728369945727,2.28523,2433.5,2433.4,0.41103]
[1728369947519,5.9838,2433.5,2433.2,3.2078]
[1728369947721,1.89106,2433.3,2433.2,3.61888]
[1728369947921,0.3991,2433.4,2433.2,3.2078]
[1728369948121,0.3991,2433.4,2433.3,0.41106]
[1728369948122,1.8791,2433.4,2433.3,0.41106]
[1728369949431,2.29015,2433.4,2433.3,0.41106]
[1728369949626,0.3991,2433.4,2433.3,0.41106]
[1728369949932,2.30001,2433.6,2433.5,0.41103]
[1728369950133,1.889,2433.6,2433.5,0.41103]
[1728369950629,2.30001,2433.6,2433.5,0.41103]
[1728369950932,0.82001,2433.6,2433.5,0.41103]
[1728369951125,2.30001,2433.6,2433.5,0.41103]
[1728369951327,1.889,2433.6,2433.5,0.41103]
[1728369952928,0.409,2433.6,2433.5,0.41103]
[1728369953326,1.48,2433.7,2433.6,0.41101]
[1728369953931,1.89099,2433.7,2433.6,0.41101]
[1728369955734,1.48,2433.7,2433.6,0.41101]
[1728369957528,0.3938,2433.8,2433.7,0.41099]
[1728369957739,1.48,2433.9,2433.8,0.41098]
[1728369960235,1.48,2433.9,2433.7,0.83219]
[1728369960438,2.31659,2433.8,2433.6,1.2517]
[1728369960734,0.41099,2433.7,2433.6,0.411]
[1728369961237,3.10099,2433.8,2433.4,1.245]
[1728369961539,3.10099,2433.8,2433.7,0.41099]
[1728369962226,2.69,2433.8,2433.7,0.41099]
[1728369962630,3.10098,2433.8,2433.7,0.41099]
[1728369964133,3.10098,2433.8,2433.5,3.2078]
[1728369964340,0.411,2433.7,2433.6,0.411]
[1728369964638,2.69,2433.8,2433.7,0.41099]
[1728369965235,3.10098,2433.8,2433.7,0.41099]
[1728369965631,2.69,2433.8,2433.7,0.41099]
[1728369966641,2.3051,2433.8,2433.7,0.41099]
[1728369968339,1.9056,2433.8,2433.7,0.41099]
[1728369970737,1.48,2433.9,2433.5,3.2078]
[1728369970942,1.48,2433.9,2433.8,0.41098]
[1728369972146,1.48,2433.9,2433.8,0.79688]
[1728369973245,1.906,2433.9,2433.8,0.79688]
[1728369973546,0.426,2433.9,2433.8,0.79688]
[1728369973747,0.426,2433.9,2433.8,1.21568]
[1728369974447,1.906,2433.9,2433.8,1.21568]
[1728369975741,1.48,2433.9,2433.8,1.21568]
[1728369977742,1.48,2434.2,2433.9,1.02739]
[1728369977942,1.89091,2434.2,2434.1,0.41093]
[1728369978240,2.5073,2434.2,2433.7,0.4054]
[1728369978445,1.89095,2434.0,2433.9,0.41095]
[1728369978648,1.48,2434.0,2433.9,0.41095]
[1728369979244,0.8064,2434.1,2434.0,0.41094]
[1728369979443,1.48,2434.1,2434.0,0.41094]
[1728369980143,1.48,2434.1,2434.0,0.82214]
[1728369981344,1.48,2434.3,2434.0,0.82214]
[1728369981642,1.48,2434.3,2434.2,0.41091]
[1728369984046,0.8064,2434.5,2434.0,0.4112]
[1728369984252,2.2864,2434.5,2434.4,0.41088]
[1728369984754,2.69726,2434.5,2434.4,0.41088]
[1728369986451,2.2864,2434.5,2434.4,0.41088]
[1728369989251,2.6748,2434.5,2434.4,0.41088]
[1728369991058,1.1948,2434.5,2434.4,0.41088]
[1728369991259,2.6748,2434.5,2434.4,0.41088]
[1728369993059,1.48,2434.5,2434.4,0.41088]
[1728369993259,0.3991,2434.7,2434.6,0.41084]
[1728369993462,1.8791,2434.7,2434.6,0.41084]
[1728369995580,3.2078,2435.2,2434.6,9.82209]
[1728369995763,0.4029,2435.0,2434.9,0.41079]
[1728369998575,0.4029,2435.0,2434.9,3.61859]
[1728369999463,0.821,2435.1,2435.0,0.41078]
[1728369999667,0.3973,2435.2,2435.1,0.41076]
[1728370003775,2.28804,2435.2,2435.1,0.41076]
[1728370004675,0.41077,2435.1,2435.0,0.41077]
[1728370004879,0.41078,2435.0,2434.9,0.41079]
[1728370006087,0.41078,2435.0,2434.8,0.41081]
[1728370006290,1.2203,2434.9,2434.8,0.41081]
[1728370006679,0.4158,2434.9,2434.8,0.41081]
[1728370006890,0.4158,2434.9,2434.8,0.82571]
[1728370014801,0.4158,2434.9,2434.8,4.03351]
[1728370014995,0.8045,2435.1,2435.0,0.41078]
[1728370015204,1.8904,2435.2,2435.1,0.41076]
[1728370017795,2.30114,2435.2,2435.1,0.41076]
[1728370019397,1.8904,2435.2,2435.1,0.41076]
[1728370019700,2.30114,2435.2,2435.1,0.41076]
[1728370021799,1.8904,2435.2,2435.1,0.41076]
[1728370022398,42.6904,2435.2,2435.1,0.41076]
[1728370022905,43.10114,2435.2,2435.1,0.41076]
[1728370023095,0.41077,2435.1,2435.0,0.41077]
[1728370023399,0.41078,2435.0,2434.9,0.41078]
[1728370023606,0.82318,2435.0,2434.9,0.41078]
[1728370023805,0.4124,2435.0,2434.9,0.41078]
[1728370024005,0.82318,2435.0,2434.9,0.41078]
[1728370025105,0.4124,2435.0,2434.9,0.41078]
[1728370025900,0.82318,2435.0,2434.9,0.41078]
[1728370026296,0.82318,2435.0,2434.7,0.4176]
[1728370026598,0.82318,2435.0,2434.6,0.4099]
[1728370026599,2.7219,2434.9,2434.8,0.41081]
[1728370027309,2.7219,2434.9,2434.6,0.41083]
[1728370027310,0.41083,2434.7,2434.6,0.41083]
[1728370027505,0.41086,2434.6,2434.5,0.41085]
[1728370027808,1.23626,2434.6,2434.5,0.41085]
[1728370030798,0.8254,2434.6,2434.4,4.60910789]
[1728370030999,1.8952,2434.5,2434.2,0.4109]
[1728370031203,1.48,2434.3,2434.0,0.3926]
[1728370031405,1.89093,2434.1,2434.0,0.80354]
[1728370032307,1.89093,2434.1,2434.0,0.41094]
[1728370032513,1.8842,2434.1,2434.0,0.41094]
[1728370034207,0.4042,2434.1,2434.0,0.41094]
[1728370034812,3.2078,2434.4,2434.0,0.41094]
[1728370034813,3.2078,2434.4,2434.0,5.588]
[1728370035011,0.3977,2434.5,2434.1,5.9342]
[1728370035308,0.41083,2434.7,2434.3,1.48]
[1728370035517,0.3977,2434.6,2434.5,0.41085]
[1728370035704,0.80854,2434.6,2434.5,0.41085]
[1728370036308,0.3977,2434.6,2434.5,0.41085]
[1728370036512,0.80854,2434.6,2434.5,0.41085]
[1728370037215,0.3977,2434.6,2434.5,0.41085]
[1728370040618,0.3977,2434.6,2434.3,1.48]
[1728370040619,1.48,2434.8,2434.7,0.41083]
[1728370040923,1.9003,2434.8,2434.7,0.41083]
[1728370041617,0.4203,2434.8,2434.7,0.41083]
[1728370041916,0.41083,2434.7,2434.6,0.80873]
[1728370042116,1.89083,2434.7,2434.6,0.80873]
[1728370042418,1.48,2434.7,2434.6,0.80873]
[1728370042610,0.83112,2434.8,2434.7,0.41083]
[1728370042812,2.31112,2434.8,2434.7,0.41083]
[1728370044016,2.31112,2434.8,2434.6,0.3979]
[1728370044017,2.31112,2434.8,2434.6,0.80873]
[1728370044712,1.9003,2434.8,2434.5,0.81265]
[1728370044912,0.41084,2434.7,2434.5,0.41085]
[1728370045824,1.9003,2434.8,2434.3,0.8166]
[1728370046014,2.31112,2434.8,2434.6,0.41083]
[1728370046209,0.41083,2434.7,2434.6,0.41083]
[1728370049215,1.9003,2434.8,2434.7,0.41083]
[1728370049720,2.31111,2434.8,2434.6,0.41083]
[1728370049918,1.9003,2434.8,2434.7,0.41083]
[1728370050422,2.31111,2434.8,2434.7,0.41083]
[1728370052611,0.4203,2434.8,2434.7,0.41083]
[1728370052817,0.83111,2434.8,2434.7,0.81463]
[1728370054121,2.31111,2434.8,2434.7,0.4038]
[1728370054526,2.31111,2434.8,2434.6,0.83443]
[1728370054711,0.41083,2434.7,2434.6,0.83443]
[1728370054917,0.41083,2434.7,2434.6,0.41083]
[1728370055116,1.9003,2434.8,2434.5,0.4232]
[1728370055326,0.41083,2434.7,2434.6,0.41084]
[1728370057822,2.31112,2434.8,2434.6,0.41084]
[1728370058025,0.41083,2434.7,2434.6,0.41084]
[1728370060324,1.48,2434.7,2434.4,3.2078]
[1728370060523,0.81496,2434.6,2434.3,0.81]
[1728370060718,0.83666,2434.5,2434.4,0.41088]
[1728370060918,0.8112,2434.5,2434.4,0.41088]
[1728370063832,0.81494,2434.6,2434.3,0.81]
[1728370063833,0.4041,2434.6,2434.5,0.41086]
[1728370076129,0.8135,2434.6,2434.5,0.41086]
[1728370080149,2.70434,2434.6,2434.1,5.79527374]
[1728370080353,2.70434,2434.6,2434.5,0.41086]
[1728370081347,0.41088,2434.5,2434.3,0.41088]
[1728370081549,1.48,2434.4,2434.1,3.6005]
[1728370081760,1.48,2434.2,2434.1,0.41092]
[1728370082353,2.68911,2434.2,2434.1,0.41092]
[1728370082559,2.2782,2434.2,2434.1,0.41092]
[1728370084253,0.7982,2434.2,2434.1,0.41092]
[1728370084555,0.3913,2434.4,2434.3,0.41089]
[1728370085349,0.80218,2434.4,2434.3,0.41089]
[1728370086455,0.3913,2434.4,2434.3,0.41089]
[1728370086851,0.80218,2434.4,2434.3,0.41089]
[1728370087059,0.4109,2434.3,2434.2,0.4109]
[1728370087760,0.80219,2434.4,2434.3,0.41089]
[1728370089461,0.41092,2434.2,2434.1,0.41092]
[1728370089662,1.89092,2434.2,2434.1,0.41092]
[1728370090058,0.41094,2434.1,2434.0,0.41093]
[1728370090254,3.09064,2434.1,2434.0,0.41093]
[1728370090454,0.41096,2434.0,2433.9,0.41095]
[1728370090767,0.41096,2433.9,2433.7,0.41099]
[1728370091059,1.48,2433.8,2433.7,0.41099]
[1728370091556,1.1997,2434.1,2433.6,5.63814832]
[1728370091861,1.48,2434.0,2433.9,0.41095]
[1728370093059,1.89094,2434.0,2433.9,0.41095]
[1728370094060,8.7966,2434.0,2433.6,4.61063832]
[1728370094263,1.48,2433.8,2433.7,0.41098]
[1728370094463,1.89098,2433.8,2433.7,0.41098]
[1728370095653,1.1997,2434.1,2433.4,6.1421]
[1728370095857,1.48,2434.0,2433.9,0.41095]
[1728370096057,1.89094,2434.0,2433.9,0.41095]
[1728370096255,5.5888,2434.0,2433.5,0.096]
[1728370096460,1.89095,2434.0,2433.9,0.41096]
[1728370096661,1.48,2434.0,2433.9,0.41096]
[1728370096862,5.99974,2434.0,2433.9,0.41096]
[1728370097063,5.5888,2434.0,2433.5,1.02757]
[1728370097269,1.48,2434.0,2433.5,1.02757]
[1728370097470,1.89095,2434.0,2433.9,0.41096]
[1728370097665,0.41097,2433.9,2433.8,0.41097]
[1728370098763,1.48,2434.0,2433.4,6.1421]
[1728370098963,0.41097,2433.9,2433.8,0.41096]
[1728370099168,1.89094,2434.0,2433.9,0.41096]
[1728370100865,0.41098,2433.8,2433.7,0.41098]
[1728370101070,1.48,2434.0,2433.4,4.6621]
[1728370101367,1.89095,2434.0,2433.9,0.41096]
[1728370101871,1.48,2434.0,2433.4,5.1145]
[1728370102173,0.41097,2433.9,2433.8,0.41097]
[1728370102371,0.41098,2433.8,2433.7,0.41099]
[1728370102677,1.89098,2433.8,2433.7,0.41099]
[1728370102873,0.411,2433.7,2433.6,0.411]
[1728370103072,1.6675,2433.7,2433.6,0.411]
[1728370103475,0.41102,2433.6,2433.5,0.41103]
[1728370106769,2.7365,2433.7,2433.4,3.6345]
[1728370106973,0.41103,2433.5,2433.4,3.6345]
[1728370107169,1.89103,2433.5,2433.4,3.6345]
[1728370107379,1.89103,2433.5,2433.4,4.04555]
[1728370112982,1.89103,2433.5,2433.4,0.83775]
[1728370114079,1.48,2433.5,2433.4,0.83775]
[1728370114289,1.2565,2433.7,2433.4,0.4267]
[1728370114473,0.4131,2433.7,2433.6,0.41101]
[1728370114775,1.89098,2433.8,2433.7,0.41099]
[1728370115970,1.48,2433.8,2433.4,0.4267]
[1728370116176,0.41102,2433.6,2433.5,0.41102]
[1728370116569,0.80552,2433.6,2433.5,0.41102]
[1728370116770,0.80552,2433.6,2433.4,0.4267]
[1728370116771,0.3945,2433.6,2433.4,0.4267]
[1728370116972,0.3945,2433.6,2433.4,0.83773]
[1728370116973,1.48,2433.5,2433.4,0.83773]
[1728370117378,1.89103,2433.5,2433.4,0.83773]
[1728370117974,1.48,2433.5,2433.4,0.83773]
[1728370118388,1.89103,2433.5,2433.4,0.83773]
[1728370118683,2.70173,2433.5,2433.4,0.83773]
[1728370119086,2.2907,2433.5,2433.4,0.83773]
[1728370119881,0.41105,2433.4,2433.2,3.2078]
[1728370120085,1.89106,2433.3,2433.2,3.61887]
[1728370120276,1.48,2433.3,2433.0,0.8175]
[1728370120476,0.41111,2433.0,2432.9,0.80562]
[1728370120683,0.41111,2433.0,2432.9,0.41112]
[1728370120684,1.89111,2433.0,2432.9,0.41112]
[1728370120879,2.70891,2433.0,2432.9,0.41112]
[1728370122283,0.41114,2432.9,2432.8,0.41114]
[1728370122483,1.89114,2432.9,2432.8,0.41114]
[1728370124780,1.48,2432.9,2432.8,0.41114]
[1728370125681,1.22891,2433.0,2432.9,0.41113]
[1728370125992,2.2978,2433.0,2432.9,0.41113]
[1728370128988,1.48,2433.0,2432.9,0.41113]
[1728370131087,0.41114,2432.9,2432.8,0.41113]
[1728370131294,1.24854,2432.9,2432.8,0.41113]
[1728370131495,0.8374,2432.9,2432.8,0.41113]
[1728370134693,2.72853,2432.9,2432.8,0.41113]
[1728370135184,15.6356,2432.9,2432.4,0.096]
[1728370135382,1.8912,2432.5,2432.3,0.41122]
[1728370135686,1.48,2432.4,2432.3,0.41122]
[1728370137280,0.41119,2432.6,2432.5,0.4112]
[1728370137490,0.4112,2432.5,2432.4,0.41121]
[1728370137694,1.8912,2432.6,2432.4,0.41121]
[1728370138194,1.48,2432.6,2432.4,0.41121]
[1728370138487,0.4112,2432.5,2432.4,0.41121]
[1728370138686,0.41121,2432.5,2432.3,0.41123]
[1728370138890,2.72121,2432.4,2432.3,0.41123]
[1728370139889,2.31,2432.4,2432.3,0.41123]
[1728370140086,1.8994,2432.4,2432.3,0.41123]
[1728370140293,2.31061,2432.4,2432.3,0.41123]
[1728370140692,1.8994,2432.4,2432.3,0.41123]
[1728370141194,1.8994,2432.4,2432.0,4.0092]
[1728370141395,0.41124,2432.3,2432.2,0.41125]
[1728370142100,0.41126,2432.2,2432.1,0.41126]
[1728370142394,1.48,2432.2,2432.1,0.41126]
[1728370143493,0.41123,2432.3,2432.2,0.41125]
[1728370144797,0.41123,2432.3,2432.0,4.0092]
[1728370145094,0.41123,2432.3,2432.2,0.41125]
[1728370147499,0.41123,2432.3,2432.0,4.0092]
[1728370147801,1.89126,2432.2,2432.0,4.42047]
[1728370147999,1.89126,2432.2,2432.1,0.41127]
[1728370148192,1.48,2432.2,2432.0,3.5968]
[1728370148392,1.89126,2432.2,2432.1,0.41127]
[1728370148596,0.41127,2432.1,2432.0,4.00808]
[1728370148899,0.41125,2432.2,2432.1,0.41127]
[1728370149200,1.89125,2432.2,2432.1,0.41127]
[1728370149993,0.4194,2432.4,2432.3,0.41123]
[1728370150298,4.64639,2432.6,2432.5,0.4112]
[1728370150299,4.6878,2432.6,2432.5,0.4112]
[1728370150492,1.8703,2432.8,2432.3,4.6878]
[1728370150694,0.80145,2432.8,2432.7,0.41116]
[1728370153414,1.48,2432.9,2432.8,0.41115]
[1728370153415,1.89114,2432.9,2432.8,0.41115]
[1728370154200,0.41114,2432.9,2432.8,0.41115]
[1728370154402,1.89114,2432.9,2432.8,0.41115]
[1728370154797,1.48,2432.9,2432.3,6.94637]
[1728370155101,1.48,2432.6,2432.5,0.4112]
[1728370155299,1.48,2432.6,2432.3,4.4383]
[1728370155504,0.4112,2432.5,2432.4,0.41121]
[1728370155701,0.41121,2432.4,2432.3,1.24692]
[1728370156116,0.41121,2432.4,2432.3,0.82632]
[1728370157711,0.41121,2432.4,2432.3,0.4151]
[1728370158628,7.6096,2432.5,2432.2,0.41123]
[1728370158917,3.62123,2432.3,2432.2,0.41123]
[1728370159117,0.41125,2432.2,2432.1,1.19706]
[1728370159321,3.62124,2432.3,2432.2,0.41125]
[1728370159520,3.21,2432.3,2432.1,0.7858]
[1728370159923,3.21,2432.3,2432.1,0.3868]
[1728370160120,0.41125,2432.2,2432.1,0.79805]
[1728370160524,3.21,2432.3,2432.1,0.3868]
[1728370160722,3.21,2432.3,2432.2,0.41125]
[1728370160923,0.41123,2432.4,2432.3,0.41123]
[1728370161426,7.6096,2432.5,2432.1,0.3868]
[1728370161723,7.6096,2432.5,2432.2,0.41123]
[1728370161724,0.41123,2432.3,2432.2,0.41123]
[1728370165820,7.6096,2432.5,2432.1,0.3868]
[1728370166023,0.41124,2432.3,2432.2,0.41125]
[1728370166227,0.41125,2432.2,2432.1,0.79805]
[1728370166422,0.42,2432.2,2432.1,0.79805]
[1728370166831,0.83125,2432.2,2432.1,0.79805]
[1728370169125,0.42,2432.2,2432.1,0.79805]
[1728370169333,0.83125,2432.2,2432.1,0.79805]
[1728370171623,0.83125,2432.2,2432.1,0.3868]
[1728370172024,0.41129,2432.0,2431.9,0.4113]
[1728370172322,0.41129,2432.0,2431.9,0.8177]
[1728370172535,0.41129,2432.0,2431.9,0.4064]
[1728370173325,0.41129,2432.0,2431.9,0.8177]
[1728370174225,4.006,2432.1,2431.9,0.4064]
[1728370174427,3.62124,2432.3,2432.2,0.41125]
[1728370176035,3.21,2432.3,2431.9,0.4064]
[1728370176431,0.41127,2432.1,2432.0,0.41127]
[1728370176627,3.62127,2432.1,2432.0,0.41128]
[1728370177131,4.03647,2432.1,2432.0,0.41128]
[1728370177334,0.41133,2431.7,2431.6,0.096]
[1728370177526,0.41133,2431.7,2431.4,0.52237]
[1728370177527,3.21,2431.7,2431.5,0.4125]
[1728370177734,0.8366,2432.0,2431.7,0.41133]
[1728370177943,3.6213,2431.9,2431.8,0.41131]
[1728370178540,1.24789,2432.0,2431.9,0.4113]
[1728370178740,1.24789,2432.0,2431.8,0.41131]
[1728370178939,1.24789,2432.0,2431.9,0.4125]
[1728370179240,0.8366,2432.0,2431.9,0.8238]
[1728370179441,0.41128,2432.0,2431.9,0.8238]
[1728370180232,0.41128,2432.0,2431.9,0.4125]
[1728370180639,0.41128,2432.0,2431.9,0.8238]
[1728370181236,0.41128,2432.0,2431.9,0.4125]
[1728370181836,0.41128,2432.0,2431.9,0.8238]
[1728370182233,3.6252,2432.1,2431.9,0.4125]
[1728370182437,3.62127,2432.1,2432.0,0.41128]
[1728370182639,3.62127,2432.1,2432.0,1.21548]
[1728370187839,3.21,2432.1,2432.0,1.21548]
[1728370188044,0.3849,2432.3,2432.2,0.41125]
[1728370188045,0.79615,2432.3,2432.2,0.41125]
[1728370188241,0.41125,2432.2,2432.1,0.41126]
[1728370189446,0.41127,2432.1,2432.0,1.21548]
[1728370191343,0.41131,2431.9,2431.8,0.41131]
[1728370191652,0.41131,2431.9,2431.8,0.4113]
[1728370191653,0.4113,2431.9,2431.8,0.4113]
[1728370192254,4.4734,2432.0,2431.6,3.6083]
[1728370192442,0.41132,2431.8,2431.7,0.41132]
[1728370192749,0.41133,2431.7,2431.6,4.01964]
[1728370192946,0.41133,2431.7,2431.6,0.81184]
[1728370194953,4.4734,2432.0,2431.6,0.4005]
[1728370195147,1.6747,2432.0,2431.9,0.4113]
[1728370195343,1.6747,2432.0,2431.8,0.4113]
[1728370195344,0.41131,2431.9,2431.8,0.4113]
[1728370196748,1.67469,2432.0,2431.9,0.4113]
[1728370198147,0.8421,2432.0,2431.9,0.4113]
[1728370198550,1.25338,2432.0,2431.9,0.4113]
[1728370198767,0.8421,2432.0,2431.9,0.4113]
[1728370199356,1.25338,2432.0,2431.9,0.4113]
[1728370199548,0.41131,2431.9,2431.8,0.4113]
[1728370200349,0.79931,2431.9,2431.8,0.4113]
[1728370200550,0.8421,2432.0,2431.6,0.4005]
[1728370200755,1.25339,2432.0,2431.9,0.4113]
[1728370204855,0.8421,2432.0,2431.9,0.4113]
[1728370205056,1.25338,2432.0,2431.9,0.4113]
[1728370205355,0.11378168,2432.3,2431.8,1.0283]
[1728370205560,0.41126,2432.2,2432.1,0.41125]
[1728370205860,0.41128,2432.0,2431.9,0.80489]
[1728370207860,0.41128,2432.1,2432.0,0.41127]
[1728370208359,0.41126,2432.2,2432.1,0.41125]
[1728370208558,40.8,2432.9,2432.0,0.3965]
[1728370208559,1.02794,2432.7,2432.0,0.3965]
[1728370208760,1.89117,2432.7,2432.2,1.48]
[1728370209057,1.89117,2432.7,2432.6,0.41118]
[1728370209966,0.41119,2432.6,2432.5,0.41119]
[1728370210264,0.41121,2432.4,2432.3,0.82392]
[1728370210763,1.21101,2432.4,2432.3,0.82392]
[1728370210967,0.7998,2432.4,2432.3,0.82392]
[1728370212675,1.21101,2432.4,2432.3,0.82392]
[1728370212867,0.7998,2432.4,2432.3,0.82392]
[1728370213467,1.21101,2432.4,2432.3,0.82392]
[1728370213869,0.7998,2432.4,2432.3,0.82392]
[1728370214176,3.21,2432.5,2432.4,0.41121]
[1728370214373,3.6212,2432.5,2432.4,0.41121]
[1728370214572,3.21,2432.5,2432.4,0.41121]
[1728370215882,3.6212,2432.5,2432.4,0.41121]
[1728370216681,0.41121,2432.4,2432.3,0.82393]
[1728370216983,0.82571,2432.4,2432.3,0.82393]
[1728370217383,0.805,2432.7,2432.3,0.4127]
[1728370217682,0.805,2432.7,2432.6,0.41118]
[1728370218077,1.21616,2432.7,2432.6,0.41118]
[1728370219473,1.21618,2432.7,2432.6,0.41118]
[1728370219773,0.4112,2432.6,2432.5,0.41119]
[1728370219976,0.8247,2432.6,2432.5,0.41119]
[1728370220175,3.6001,2432.7,2432.4,0.4151]